[Event "December 19 Early 2023"]
[Site "https://www.chess.com"]
[Date "2023.12.19"]
[Round "1"]
[White "Guz, Ari"]
[Black "Pak, Yevgeniy"]
[Result "0-1"]
[Board "223"]
[TimeControl "180+1"]
[WhiteFideId "2825759"]
[BlackFideId "14201712"]
[WhiteElo "2205"]
[BlackElo "2320"]
[WhiteTeam "ISR"]
[BlackTeam "KAZ"]
[WhiteClock "0:00:35"]
[BlackClock "0:01:18"]

1. a3 {[%clk 0:02:51]}  e6 {[%clk 0:03:00]} 2. b4 {[%clk 0:02:51]}  a5 {[%clk 0:02:59]} 3. b5 {[%clk 0:02:51]}  Nf6 {[%clk 0:02:58]} 4. Bb2 {[%clk 0:02:51]}  b6 {[%clk 0:02:58]} 5. Nf3 {[%clk 0:02:49]}  Bb7 {[%clk 0:02:58]} 6. c4 {[%clk 0:02:49]}  c6 {[%clk 0:02:58]} 7. a4 {[%clk 0:02:48]}  cxb5 {[%clk 0:02:58]} 8. cxb5 {[%clk 0:02:46]}  d5 {[%clk 0:02:57]} 9. d4 {[%clk 0:02:46]}  Nbd7 {[%clk 0:02:57]} 10. e3 {[%clk 0:02:45]}  Rc8 {[%clk 0:02:57]} 11. Bd3 {[%clk 0:02:45]}  Bb4+ {[%clk 0:02:54]} 12. Nbd2 {[%clk 0:02:44]}  Ne4 {[%clk 0:02:55]} 13. O-O {[%clk 0:02:42]}  Nc3 {[%clk 0:02:53]} 14. Qb3 {[%clk 0:02:38]}  Nf6 {[%clk 0:02:49]} 15. Ne5 {[%clk 0:02:29]}  O-O {[%clk 0:02:47]} 16. f3 {[%clk 0:02:27]}  Nxa4 {[%clk 0:02:33]} 17. Rxa4 {[%clk 0:02:09]}  Bxd2 {[%clk 0:02:32]} 18. Ba3 {[%clk 0:02:03]}  Bxe3+ {[%clk 0:02:28]} 19. Kh1 {[%clk 0:02:03]}  Re8 {[%clk 0:02:22]} 20. Bxh7+ {[%clk 0:02:00]}  Nxh7 {[%clk 0:02:18]} 21. Qxe3 {[%clk 0:01:59]}  Qg5 {[%clk 0:02:08]} 22. Qd3 {[%clk 0:01:48]}  Qf5 {[%clk 0:02:05]} 23. Qxf5 {[%clk 0:01:38]}  exf5 {[%clk 0:02:06]} 24. Bc1 {[%clk 0:01:38]}  f6 {[%clk 0:02:06]} 25. Nd3 {[%clk 0:01:35]}  Nf8 {[%clk 0:02:02]} 26. Kg1 {[%clk 0:01:28]}  Ne6 {[%clk 0:02:01]} 27. Be3 {[%clk 0:01:26]}  Rc3 {[%clk 0:01:59]} 28. Rd1 {[%clk 0:01:25]}  Rec8 {[%clk 0:01:47]} 29. Kf2 {[%clk 0:01:24]}  R8c4 {[%clk 0:01:40]} 30. Rxc4 {[%clk 0:01:20]}  Rxc4 {[%clk 0:01:41]} 31. Nf4 {[%clk 0:01:17]}  Kf7 {[%clk 0:01:37]} 32. Nxe6 {[%clk 0:01:16]}  Kxe6 {[%clk 0:01:38]} 33. Rc1 {[%clk 0:01:05]}  Bc8 {[%clk 0:01:38]} 34. Rxc4 {[%clk 0:00:59]}  dxc4 {[%clk 0:01:38]} 35. d5+ {[%clk 0:01:00]}  Kxd5 {[%clk 0:01:38]} 36. Bxb6 {[%clk 0:01:01]}  a4 {[%clk 0:01:39]} 37. Ba5 {[%clk 0:00:57]}  Kc5 {[%clk 0:01:31]} 38. Ke3 {[%clk 0:00:49]}  Kxb5 {[%clk 0:01:30]} 39. Bc3 {[%clk 0:00:49]}  a3 {[%clk 0:01:29]} 40. Kd2 {[%clk 0:00:47]}  Ka4 {[%clk 0:01:28]} 41. Kc2 {[%clk 0:00:47]}  f4 {[%clk 0:01:29]} 42. Ba1 {[%clk 0:00:45]}  Bf5+ {[%clk 0:01:29]} 43. Kc3 {[%clk 0:00:45]}  Kb5 {[%clk 0:01:26]} 44. g3 {[%clk 0:00:45]}  fxg3 {[%clk 0:01:24]} 45. hxg3 {[%clk 0:00:46]}  Bd3 {[%clk 0:01:19]} 46. Kd4 {[%clk 0:00:35]}  Kb4 {[%clk 0:01:18]} 0-1

[Event "December 19 Early 2023"]
[Site "https://www.chess.com"]
[Date "2023.12.19"]
[Round "1"]
[White "Koc, Przemyslaw"]
[Black "Quirke, Jeffrey"]
[Result "0-1"]
[Board "225"]
[TimeControl "180+1"]
[WhiteFideId "1109081"]
[BlackFideId "2013029"]
[WhiteElo "2118"]
[BlackElo "2143"]
[WhiteTeam "POL"]
[BlackTeam "USA"]
[WhiteClock "0:00:08"]
[BlackClock "0:00:07"]

1. d4 {[%clk 0:03:00]}  e6 {[%clk 0:02:59]} 2. Nf3 {[%clk 0:03:00]}  c5 {[%clk 0:02:56]} 3. d5 {[%clk 0:02:56]}  exd5 {[%clk 0:02:50]} 4. e3 {[%clk 0:02:56]}  Nf6 {[%clk 0:02:49]} 5. Nc3 {[%clk 0:02:56]}  d6 {[%clk 0:02:45]} 6. Nxd5 {[%clk 0:02:56]}  Nxd5 {[%clk 0:02:43]} 7. Qxd5 {[%clk 0:02:56]}  Nc6 {[%clk 0:02:41]} 8. c3 {[%clk 0:02:44]}  Be6 {[%clk 0:02:39]} 9. Qh5 {[%clk 0:02:43]}  Be7 {[%clk 0:02:35]} 10. e4 {[%clk 0:02:43]}  O-O {[%clk 0:02:35]} 11. Be2 {[%clk 0:02:34]}  f5 {[%clk 0:02:19]} 12. Ng5 {[%clk 0:02:25]}  Bxg5 {[%clk 0:02:11]} 13. Bxg5 {[%clk 0:02:25]}  Qe8 {[%clk 0:02:12]} 14. exf5 {[%clk 0:02:15]}  Qxh5 {[%clk 0:02:08]} 15. Bxh5 {[%clk 0:02:14]}  Bxf5 {[%clk 0:02:07]} 16. O-O {[%clk 0:02:08]}  d5 {[%clk 0:02:01]} 17. Bf3 {[%clk 0:02:05]}  d4 {[%clk 0:01:48]} 18. Rfe1 {[%clk 0:01:44]}  Rfe8 {[%clk 0:01:45]} 19. g4 {[%clk 0:01:25]}  Bg6 {[%clk 0:01:29]} 20. Bd5+ {[%clk 0:01:19]}  Kf8 {[%clk 0:01:29]} 21. f4 {[%clk 0:01:19]}  h6 {[%clk 0:01:20]} 22. Bh4 {[%clk 0:01:19]}  Bc2 {[%clk 0:01:18]} 23. Bf2 {[%clk 0:01:03]}  Rad8 {[%clk 0:01:09]} 24. c4 {[%clk 0:01:01]}  Rxe1+ {[%clk 0:00:50]} 25. Rxe1 {[%clk 0:01:01]}  Ne7 {[%clk 0:00:43]} 26. Bf3 {[%clk 0:00:45]}  b6 {[%clk 0:00:41]} 27. f5 {[%clk 0:00:44]}  d3 {[%clk 0:00:40]} 28. Bh4 {[%clk 0:00:33]}  Re8 {[%clk 0:00:17]} 29. Bd1 {[%clk 0:00:30]}  Nc6 {[%clk 0:00:14]} 30. Rxe8+ {[%clk 0:00:26]}  Kxe8 {[%clk 0:00:15]} 31. Bf3 {[%clk 0:00:26]}  Nd4 {[%clk 0:00:13]} 32. f6 {[%clk 0:00:17]}  gxf6 {[%clk 0:00:10]} 33. Bd1 {[%clk 0:00:13]}  Bxd1 {[%clk 0:00:09]} 34. Bxf6 {[%clk 0:00:14]}  d2 {[%clk 0:00:08]} 35. Bg5 {[%clk 0:00:09]}  Nf3+ {[%clk 0:00:07]} 36. Kf2 {[%clk 0:00:09]}  Nxg5 {[%clk 0:00:08]} 37. Ke3 {[%clk 0:00:09]}  Bxg4 {[%clk 0:00:06]} 38. Kxd2 {[%clk 0:00:10]}  h5 {[%clk 0:00:06]} 39. Ke3 {[%clk 0:00:11]}  Nf3 {[%clk 0:00:07]} 40. h3 {[%clk 0:00:09]}  Bxh3 {[%clk 0:00:06]} 41. Kxf3 {[%clk 0:00:10]}  Be6 {[%clk 0:00:07]} 42. b3 {[%clk 0:00:10]}  Ke7 {[%clk 0:00:05]} 43. Kf4 {[%clk 0:00:10]}  Kd6 {[%clk 0:00:06]} 44. Kg5 {[%clk 0:00:10]}  Bg4 {[%clk 0:00:07]} 45. Kf4 {[%clk 0:00:09]}  Ke6 {[%clk 0:00:06]} 46. a3 {[%clk 0:00:09]}  a5 {[%clk 0:00:07]} 47. a4 {[%clk 0:00:09]}  Bd1 {[%clk 0:00:07]} 48. Kg5 {[%clk 0:00:08]}  Bxb3 {[%clk 0:00:07]} 0-1

[Event "December 19 Early 2023"]
[Site "https://www.chess.com"]
[Date "2023.12.19"]
[Round "1"]
[White "Feliz Dotel, Dewar Bienvenido"]
[Black "Vakhidov, Shahzod"]
[Result "0-1"]
[Board "226"]
[TimeControl "180+1"]
[WhiteFideId "6402801"]
[BlackFideId "14205270"]
[WhiteElo "2069"]
[BlackElo "2212"]
[WhiteTeam "DOM"]
[BlackTeam "UZB"]
[WhiteClock "0:00:00"]
[BlackClock "0:01:18"]

1. Nf3 {[%clk 0:02:59]}  Nf6 {[%clk 0:03:00]} 2. c4 {[%clk 0:02:58]}  g6 {[%clk 0:03:00]} 3. g3 {[%clk 0:02:58]}  c5 {[%clk 0:03:00]} 4. Bg2 {[%clk 0:02:59]}  Bg7 {[%clk 0:03:01]} 5. O-O {[%clk 0:02:59]}  O-O {[%clk 0:03:02]} 6. Nc3 {[%clk 0:02:59]}  Nc6 {[%clk 0:03:00]} 7. e3 {[%clk 0:02:59]}  d5 {[%clk 0:02:59]} 8. cxd5 {[%clk 0:02:57]}  Nxd5 {[%clk 0:03:00]} 9. a3 {[%clk 0:02:51]}  Nxc3 {[%clk 0:02:50]} 10. bxc3 {[%clk 0:02:42]}  Qa5 {[%clk 0:02:49]} 11. Bb2 {[%clk 0:02:31]}  Rd8 {[%clk 0:02:44]} 12. Qe2 {[%clk 0:02:25]}  e5 {[%clk 0:02:35]} 13. d4 {[%clk 0:02:21]}  Be6 {[%clk 0:02:17]} 14. Ng5 {[%clk 0:01:45]}  Bb3 {[%clk 0:02:06]} 15. Rfe1 {[%clk 0:01:14]}  cxd4 {[%clk 0:01:50]} 16. cxd4 {[%clk 0:01:14]}  exd4 {[%clk 0:01:50]} 17. exd4 {[%clk 0:00:58]}  Qxg5 {[%clk 0:01:49]} 18. d5 {[%clk 0:00:43]}  Bxd5 {[%clk 0:01:44]} 19. Bxg7 {[%clk 0:00:40]}  Kxg7 {[%clk 0:01:37]} 20. Qb5 {[%clk 0:00:37]}  a6 {[%clk 0:01:28]} 21. Qxb7 {[%clk 0:00:35]}  Bxg2 {[%clk 0:01:23]} 22. Kxg2 {[%clk 0:00:34]}  Qd5+ {[%clk 0:01:24]} 23. Kg1 {[%clk 0:00:33]}  Nd4 {[%clk 0:01:24]} 24. Qxd5 {[%clk 0:00:31]}  Rxd5 {[%clk 0:01:25]} 25. Red1 {[%clk 0:00:29]}  Nf3+ {[%clk 0:01:21]} 26. Kg2 {[%clk 0:00:29]}  Rxd1 {[%clk 0:01:22]} 27. Rxd1 {[%clk 0:00:29]}  Ne5 {[%clk 0:01:23]} 28. Rd5 {[%clk 0:00:23]}  Nc4 {[%clk 0:01:22]} 29. a4 {[%clk 0:00:19]}  Nb6 {[%clk 0:01:22]} 30. Rd4 {[%clk 0:00:18]}  a5 {[%clk 0:01:21]} 31. f4 {[%clk 0:00:15]}  Rc8 {[%clk 0:01:21]} 32. Rd6 {[%clk 0:00:08]}  Nxa4 {[%clk 0:01:20]} 33. f5 {[%clk 0:00:07]}  gxf5 {[%clk 0:01:20]} 34. Ra6 {[%clk 0:00:06]}  Rc5 {[%clk 0:01:20]} 35. h4 {[%clk 0:00:05]}  Nc3 {[%clk 0:01:19]} 36. h5 {[%clk 0:00:05]}  h6 {[%clk 0:01:18]} 37. Kf3 {[%clk 0:00:04]}  Ne4 {[%clk 0:01:17]} 38. Kf4 {[%clk 0:00:03]}  Ng5 {[%clk 0:01:17]} 39. Ra7 {[%clk 0:00:02]}  Ne6+ {[%clk 0:01:17]} 40. Kf3 {[%clk 0:00:00]}  Kf6 {[%clk 0:01:18]} 0-1

[Event "December 19 Early 2023"]
[Site "https://www.chess.com"]
[Date "2023.12.19"]
[Round "1"]
[White "Ghosh, Chanchal Kumer"]
[Black "Korchynskyi, Mykola"]
[Result "0-1"]
[Board "234"]
[TimeControl "180+1"]
[WhiteFideId "10201858"]
[BlackFideId "34138005"]
[WhiteElo "2067"]
[BlackElo "2007"]
[WhiteTeam "BAN"]
[BlackTeam "UKR"]
[WhiteClock "0:00:00"]
[BlackClock "0:01:00"]

1. e4 {[%clk 0:02:59]}  e6 {[%clk 0:02:59]} 2. Nf3 {[%clk 0:02:59]}  d5 {[%clk 0:03:00]} 3. Nc3 {[%clk 0:02:59]}  c5 {[%clk 0:02:54]} 4. exd5 {[%clk 0:02:57]}  exd5 {[%clk 0:02:53]} 5. Bb5+ {[%clk 0:02:57]}  Nc6 {[%clk 0:02:52]} 6. O-O {[%clk 0:02:51]}  Be7 {[%clk 0:02:51]} 7. d4 {[%clk 0:02:46]}  Nf6 {[%clk 0:02:50]} 8. dxc5 {[%clk 0:02:43]}  O-O {[%clk 0:02:43]} 9. Bg5 {[%clk 0:02:18]}  d4 {[%clk 0:02:36]} 10. Bxf6 {[%clk 0:02:15]}  Bxf6 {[%clk 0:02:34]} 11. Ne4 {[%clk 0:02:11]}  Ne5 {[%clk 0:01:58]} 12. Nxf6+ {[%clk 0:01:44]}  Qxf6 {[%clk 0:01:59]} 13. Nxd4 {[%clk 0:01:36]}  Rd8 {[%clk 0:01:56]} 14. c3 {[%clk 0:01:36]}  Bg4 {[%clk 0:01:54]} 15. Be2 {[%clk 0:01:35]}  Bxe2 {[%clk 0:01:52]} 16. Qxe2 {[%clk 0:01:34]}  Rac8 {[%clk 0:01:53]} 17. b4 {[%clk 0:01:28]}  h6 {[%clk 0:01:51]} 18. Rfe1 {[%clk 0:01:26]}  Ng6 {[%clk 0:01:52]} 19. Rad1 {[%clk 0:01:22]}  Rd5 {[%clk 0:01:51]} 20. Nf3 {[%clk 0:01:18]}  Rf5 {[%clk 0:01:48]} 21. Rd3 {[%clk 0:01:16]}  Nf4 {[%clk 0:01:47]} 22. Qd2 {[%clk 0:01:02]}  Nxd3 {[%clk 0:01:47]} 23. Qxd3 {[%clk 0:01:02]}  Rd8 {[%clk 0:01:47]} 24. Qe3 {[%clk 0:00:58]}  Rfd5 {[%clk 0:01:45]} 25. h3 {[%clk 0:00:58]}  Rd3 {[%clk 0:01:45]} 26. Qe7 {[%clk 0:00:56]}  Qxc3 {[%clk 0:01:46]} 27. Re4 {[%clk 0:00:43]}  R3d7 {[%clk 0:01:27]} 28. Qh4 {[%clk 0:00:35]}  Qa1+ {[%clk 0:01:26]} 29. Kh2 {[%clk 0:00:32]}  Qxa2 {[%clk 0:01:27]} 30. Ne5 {[%clk 0:00:30]}  Rd2 {[%clk 0:01:22]} 31. Rf4 {[%clk 0:00:22]}  Rf8 {[%clk 0:01:22]} 32. Qg3 {[%clk 0:00:18]}  Qe6 {[%clk 0:01:20]} 33. Ng4 {[%clk 0:00:18]}  Kh8 {[%clk 0:01:18]} 34. Qh4 {[%clk 0:00:11]}  Qg6 {[%clk 0:01:08]} 35. Ne3 {[%clk 0:00:10]}  Rdd8 {[%clk 0:01:06]} 36. Rf3 {[%clk 0:00:09]}  Rde8 {[%clk 0:01:05]} 37. Rg3 {[%clk 0:00:08]}  Re4 {[%clk 0:01:03]} 38. f4 {[%clk 0:00:06]}  Qh7 {[%clk 0:01:02]} 39. Ng4 {[%clk 0:00:06]}  Rxf4 {[%clk 0:01:01]} 40. Qh5 {[%clk 0:00:06]}  Rf5 {[%clk 0:01:00]} 41. Qh4 {[%clk 0:00:00]}  Rg5 {[%clk 0:01:00]} 0-1

[Event "December 19 Early 2023"]
[Site "https://www.chess.com"]
[Date "2023.12.19"]
[Round "1"]
[White "Hirneise, Jens"]
[Black "Gulamirian, Korun"]
[Result "1-0"]
[Board "241"]
[TimeControl "180+1"]
[WhiteFideId "24614734"]
[BlackFideId "4144899"]
[WhiteElo "2311"]
[BlackElo "1621"]
[WhiteTeam "GER"]
[BlackTeam "RUS"]
[WhiteClock "0:01:51"]
[BlackClock "0:00:01"]

1. d4 {[%clk 0:03:00]}  Nf6 {[%clk 0:02:55]} 2. c4 {[%clk 0:02:55]}  e6 {[%clk 0:02:54]} 3. Nf3 {[%clk 0:02:50]}  d5 {[%clk 0:02:53]} 4. g3 {[%clk 0:02:47]}  Bb4+ {[%clk 0:02:42]} 5. Bd2 {[%clk 0:02:45]}  Bxd2+ {[%clk 0:02:38]} 6. Nbxd2 {[%clk 0:02:45]}  O-O {[%clk 0:02:38]} 7. Bg2 {[%clk 0:02:45]}  c6 {[%clk 0:02:38]} 8. O-O {[%clk 0:02:45]}  Nbd7 {[%clk 0:02:37]} 9. Rc1 {[%clk 0:02:44]}  Re8 {[%clk 0:02:10]} 10. Qc2 {[%clk 0:02:43]}  e5 {[%clk 0:02:07]} 11. dxe5 {[%clk 0:02:40]}  Nxe5 {[%clk 0:02:06]} 12. Nxe5 {[%clk 0:02:39]}  Rxe5 {[%clk 0:02:01]} 13. Nf3 {[%clk 0:02:39]}  Re8 {[%clk 0:01:49]} 14. Rfd1 {[%clk 0:02:36]}  Bg4 {[%clk 0:01:43]} 15. cxd5 {[%clk 0:02:35]}  cxd5 {[%clk 0:01:42]} 16. Qd3 {[%clk 0:02:19]}  Qe7 {[%clk 0:01:37]} 17. e3 {[%clk 0:02:10]}  Rac8 {[%clk 0:01:19]} 18. h3 {[%clk 0:02:08]}  Bxf3 {[%clk 0:01:04]} 19. Bxf3 {[%clk 0:02:07]}  Rxc1 {[%clk 0:01:04]} 20. Rxc1 {[%clk 0:02:08]}  Qe6 {[%clk 0:01:03]} 21. Kg2 {[%clk 0:02:07]}  Ne4 {[%clk 0:01:00]} 22. h4 {[%clk 0:02:03]}  g6 {[%clk 0:00:55]} 23. Qd4 {[%clk 0:02:03]}  Nf6 {[%clk 0:00:45]} 24. Qxa7 {[%clk 0:02:01]}  Re7 {[%clk 0:00:29]} 25. Qd4 {[%clk 0:01:56]}  h5 {[%clk 0:00:18]} 26. a4 {[%clk 0:01:54]}  Rd7 {[%clk 0:00:04]} 27. b4 {[%clk 0:01:53]}  Ne4 {[%clk 0:00:03]} 28. Rc8+ {[%clk 0:01:52]}  Kh7 {[%clk 0:00:01]} 29. Rh8# {[%clk 0:01:51]} 1-0

[Event "December 19 Early 2023"]
[Site "https://www.chess.com"]
[Date "2023.12.19"]
[Round "1"]
[White "SujanaLohani"]
[Black "Aaron, Deepak"]
[Result "0-1"]
[Board "242"]
[TimeControl "180+1"]
[BlackFideId "2009412"]
[WhiteElo "2024"]
[BlackElo "2257"]
[BlackTeam "USA"]
[WhiteClock "0:01:33"]
[BlackClock "0:02:45"]

1. d4 {[%clk 0:02:43]}  e6 {[%clk 0:02:58]} 2. c4 {[%clk 0:02:43]}  f5 {[%clk 0:02:58]} 3. e4 {[%clk 0:02:43]}  fxe4 {[%clk 0:02:58]} 4. Nc3 {[%clk 0:02:42]}  Nf6 {[%clk 0:02:58]} 5. f3 {[%clk 0:02:41]}  Bb4 {[%clk 0:02:57]} 6. Bg5 {[%clk 0:02:39]}  O-O {[%clk 0:02:55]} 7. fxe4 {[%clk 0:02:38]}  h6 {[%clk 0:02:56]} 8. Bxf6 {[%clk 0:02:35]}  Qxf6 {[%clk 0:02:57]} 9. Nf3 {[%clk 0:02:35]}  c5 {[%clk 0:02:57]} 10. e5 {[%clk 0:02:24]}  Qf4 {[%clk 0:02:55]} 11. Be2 {[%clk 0:02:12]}  Nc6 {[%clk 0:02:53]} 12. g3 {[%clk 0:02:03]}  Qe3 {[%clk 0:02:50]} 13. Qd3 {[%clk 0:01:46]}  Rxf3 {[%clk 0:02:45]} 14. Qxe3 {[%clk 0:01:42]}  Rxe3 {[%clk 0:02:46]} 15. Kd2 {[%clk 0:01:33]}  cxd4 {[%clk 0:02:45]} 0-1

[Event "December 19 Early 2023"]
[Site "https://www.chess.com"]
[Date "2023.12.19"]
[Round "1"]
[White "Goltseva, Ekaterina"]
[Black "Levine, David"]
[Result "1-0"]
[Board "243"]
[TimeControl "180+1"]
[WhiteFideId "24173770"]
[BlackFideId "2011611"]
[WhiteElo "2139"]
[BlackElo "2011"]
[WhiteTeam "RUS"]
[BlackTeam "USA"]
[WhiteClock "0:00:35"]
[BlackClock "0:00:37"]

1. Nf3 {[%clk 0:02:58]}  d5 {[%clk 0:02:59]} 2. d4 {[%clk 0:02:58]}  Nf6 {[%clk 0:02:58]} 3. c4 {[%clk 0:02:58]}  dxc4 {[%clk 0:02:58]} 4. e3 {[%clk 0:02:58]}  e6 {[%clk 0:02:53]} 5. Bxc4 {[%clk 0:02:58]}  a6 {[%clk 0:02:54]} 6. O-O {[%clk 0:02:57]}  b5 {[%clk 0:02:51]} 7. Bd3 {[%clk 0:02:57]}  Bb7 {[%clk 0:02:51]} 8. a4 {[%clk 0:02:57]}  b4 {[%clk 0:02:51]} 9. Qe2 {[%clk 0:02:57]}  Nbd7 {[%clk 0:02:50]} 10. e4 {[%clk 0:02:56]}  c5 {[%clk 0:02:48]} 11. Rd1 {[%clk 0:02:56]}  cxd4 {[%clk 0:02:45]} 12. Nxd4 {[%clk 0:02:52]}  Be7 {[%clk 0:02:34]} 13. e5 {[%clk 0:02:48]}  Nd5 {[%clk 0:02:33]} 14. Qg4 {[%clk 0:02:38]}  Kf8 {[%clk 0:02:30]} 15. Qe2 {[%clk 0:02:23]}  Qc7 {[%clk 0:02:27]} 16. Nf3 {[%clk 0:02:13]}  g5 {[%clk 0:02:24]} 17. Bxg5 {[%clk 0:02:05]}  Bxg5 {[%clk 0:02:22]} 18. Nxg5 {[%clk 0:02:06]}  Qxe5 {[%clk 0:02:22]} 19. Qh5 {[%clk 0:01:58]}  Qg7 {[%clk 0:02:10]} 20. g3 {[%clk 0:01:40]}  N7f6 {[%clk 0:02:06]} 21. Qh4 {[%clk 0:01:35]}  h6 {[%clk 0:02:03]} 22. Ne4 {[%clk 0:01:32]}  Nxe4 {[%clk 0:01:51]} 23. Bxe4 {[%clk 0:01:33]}  Qg5 {[%clk 0:01:50]} 24. Qxg5 {[%clk 0:01:10]}  hxg5 {[%clk 0:01:50]} 25. Nd2 {[%clk 0:01:11]}  Ke7 {[%clk 0:01:48]} 26. Nc4 {[%clk 0:01:11]}  Rad8 {[%clk 0:01:41]} 27. Na5 {[%clk 0:01:09]}  Ba8 {[%clk 0:01:40]} 28. Rac1 {[%clk 0:01:04]}  Rc8 {[%clk 0:01:35]} 29. Bg2 {[%clk 0:00:53]}  Rhd8 {[%clk 0:01:28]} 30. Bf1 {[%clk 0:00:46]}  Rxc1 {[%clk 0:01:18]} 31. Rxc1 {[%clk 0:00:47]}  Nb6 {[%clk 0:01:13]} 32. b3 {[%clk 0:00:43]}  Bd5 {[%clk 0:01:10]} 33. Nc6+ {[%clk 0:00:42]}  Bxc6 {[%clk 0:01:08]} 34. Rxc6 {[%clk 0:00:42]}  Nd5 {[%clk 0:00:46]} 35. Rxa6 {[%clk 0:00:39]}  Rc8 {[%clk 0:00:45]} 36. Ra7+ {[%clk 0:00:38]}  Kf6 {[%clk 0:00:44]} 37. a5 {[%clk 0:00:36]}  Rc3 {[%clk 0:00:41]} 38. Bc4 {[%clk 0:00:36]}  Nb6 {[%clk 0:00:37]} 39. axb6 {[%clk 0:00:35]} 1-0

[Event "December 19 Early 2023"]
[Site "https://www.chess.com"]
[Date "2023.12.19"]
[Round "1"]
[White "Bogumil, Tatiana"]
[Black "Kleinman, Michael"]
[Result "0-1"]
[Board "244"]
[TimeControl "180+1"]
[WhiteFideId "4110579"]
[BlackFideId "2609479"]
[WhiteElo "1853"]
[BlackElo "2287"]
[WhiteTeam "RUS"]
[BlackTeam "CAN"]
[WhiteClock "0:00:00"]
[BlackClock "0:00:54"]

1. Nf3 {[%clk 0:02:59]}  c5 {[%clk 0:02:59]} 2. c4 {[%clk 0:02:54]}  Nc6 {[%clk 0:02:59]} 3. b3 {[%clk 0:02:47]}  e5 {[%clk 0:02:54]} 4. d3 {[%clk 0:02:47]}  d5 {[%clk 0:02:45]} 5. Bb2 {[%clk 0:02:46]}  d4 {[%clk 0:02:42]} 6. g3 {[%clk 0:02:38]}  Bd6 {[%clk 0:02:35]} 7. Bg2 {[%clk 0:02:38]}  f5 {[%clk 0:02:32]} 8. Nbd2 {[%clk 0:02:34]}  Nf6 {[%clk 0:02:33]} 9. a3 {[%clk 0:02:31]}  O-O {[%clk 0:02:26]} 10. b4 {[%clk 0:02:26]}  cxb4 {[%clk 0:02:21]} 11. axb4 {[%clk 0:02:27]}  Bxb4 {[%clk 0:02:20]} 12. O-O {[%clk 0:02:10]}  a5 {[%clk 0:02:13]} 13. Qc2 {[%clk 0:02:01]}  Qe7 {[%clk 0:02:09]} 14. Rfb1 {[%clk 0:01:55]}  Be6 {[%clk 0:02:03]} 15. Ng5 {[%clk 0:01:42]}  Bd7 {[%clk 0:01:57]} 16. Qc1 {[%clk 0:01:28]}  h6 {[%clk 0:01:54]} 17. Ngf3 {[%clk 0:01:27]}  Rad8 {[%clk 0:01:39]} 18. Ba3 {[%clk 0:01:13]}  e4 {[%clk 0:01:29]} 19. Bxb4 {[%clk 0:01:00]}  axb4 {[%clk 0:01:22]} 20. Ne1 {[%clk 0:00:36]}  e3 {[%clk 0:01:12]} 21. Nb3 {[%clk 0:00:14]}  exf2+ {[%clk 0:01:10]} 22. Kxf2 {[%clk 0:00:15]}  Ng4+ {[%clk 0:01:09]} 23. Kg1 {[%clk 0:00:09]}  Qxe2 {[%clk 0:01:07]} 24. Qd2 {[%clk 0:00:04]}  Qe3+ {[%clk 0:00:56]} 25. Qxe3 {[%clk 0:00:02]}  dxe3 {[%clk 0:00:55]} 26. Bd5+ {[%clk 0:00:00]}  Kh7 {[%clk 0:00:54]} 0-1

[Event "December 19 Early 2023"]
[Site "https://www.chess.com"]
[Date "2023.12.19"]
[Round "1"]
[White "Urquhart, Ed"]
[Black "Santos, Isaque Goncalves"]
[Result "1-0"]
[Board "249"]
[TimeControl "180+1"]
[WhiteFideId "2603748"]
[BlackFideId "2103885"]
[WhiteElo "2184"]
[BlackElo "1901"]
[WhiteTeam "CAN"]
[BlackTeam "BRA"]
[WhiteClock "0:00:35"]
[BlackClock "0:00:00"]

1. e4 {[%clk 0:02:58]}  e6 {[%clk 0:02:59]} 2. d4 {[%clk 0:02:58]}  d5 {[%clk 0:02:59]} 3. Nd2 {[%clk 0:02:58]}  Nf6 {[%clk 0:02:58]} 4. e5 {[%clk 0:02:57]}  Nfd7 {[%clk 0:02:58]} 5. c3 {[%clk 0:02:58]}  c5 {[%clk 0:02:58]} 6. f4 {[%clk 0:02:58]}  Nc6 {[%clk 0:02:54]} 7. Ndf3 {[%clk 0:02:58]}  Qb6 {[%clk 0:02:44]} 8. h4 {[%clk 0:02:57]}  h5 {[%clk 0:02:33]} 9. Nh3 {[%clk 0:02:54]}  Ne7 {[%clk 0:02:31]} 10. Bd3 {[%clk 0:02:52]}  c4 {[%clk 0:02:27]} 11. Bc2 {[%clk 0:02:52]}  g6 {[%clk 0:02:26]} 12. O-O {[%clk 0:02:44]}  Nf5 {[%clk 0:02:23]} 13. Kh2 {[%clk 0:02:40]}  Be7 {[%clk 0:02:21]} 14. Nhg5 {[%clk 0:02:40]}  Nf8 {[%clk 0:02:01]} 15. b3 {[%clk 0:02:36]}  cxb3 {[%clk 0:01:45]} 16. axb3 {[%clk 0:02:36]}  Qc7 {[%clk 0:01:44]} 17. Bd2 {[%clk 0:02:13]}  Bd7 {[%clk 0:01:43]} 18. Bd3 {[%clk 0:01:59]}  b5 {[%clk 0:01:35]} 19. Qe2 {[%clk 0:01:54]}  a6 {[%clk 0:01:27]} 20. c4 {[%clk 0:01:53]}  bxc4 {[%clk 0:01:26]} 21. bxc4 {[%clk 0:01:54]}  Bc6 {[%clk 0:00:45]} 22. c5 {[%clk 0:01:51]}  Nh7 {[%clk 0:00:44]} 23. Nxh7 {[%clk 0:01:48]}  Rxh7 {[%clk 0:00:43]} 24. g3 {[%clk 0:01:46]}  Rh8 {[%clk 0:00:41]} 25. Rxa6 {[%clk 0:01:38]}  Rxa6 {[%clk 0:00:38]} 26. Bxa6 {[%clk 0:01:39]}  Kf8 {[%clk 0:00:36]} 27. Bd3 {[%clk 0:01:35]}  Kg7 {[%clk 0:00:35]} 28. Ra1 {[%clk 0:01:32]}  Nh6 {[%clk 0:00:33]} 29. Kh3 {[%clk 0:01:25]}  Ng4 {[%clk 0:00:32]} 30. Nh2 {[%clk 0:01:20]}  Nh6 {[%clk 0:00:29]} 31. Ba5 {[%clk 0:01:09]}  Qb7 {[%clk 0:00:28]} 32. Bb6 {[%clk 0:01:08]}  Ra8 {[%clk 0:00:27]} 33. Qb2 {[%clk 0:01:05]}  Rxa1 {[%clk 0:00:26]} 34. Qxa1 {[%clk 0:01:06]}  Nf5 {[%clk 0:00:23]} 35. Nf3 {[%clk 0:00:58]}  Ne3 {[%clk 0:00:23]} 36. Qa7 {[%clk 0:00:51]}  Ng4 {[%clk 0:00:22]} 37. Qxb7 {[%clk 0:00:51]}  Bxb7 {[%clk 0:00:19]} 38. Kg2 {[%clk 0:00:49]}  Ne3+ {[%clk 0:00:18]} 39. Kf2 {[%clk 0:00:47]}  Ng4+ {[%clk 0:00:18]} 40. Ke2 {[%clk 0:00:47]}  Bc6 {[%clk 0:00:19]} 41. Ba6 {[%clk 0:00:47]}  f6 {[%clk 0:00:16]} 42. exf6+ {[%clk 0:00:45]}  Bxf6 {[%clk 0:00:15]} 43. Ne5 {[%clk 0:00:45]}  Bxe5 {[%clk 0:00:08]} 44. fxe5 {[%clk 0:00:44]}  Kh6 {[%clk 0:00:07]} 45. Bd8 {[%clk 0:00:43]}  Kg7 {[%clk 0:00:06]} 46. Bg5 {[%clk 0:00:43]}  Kf7 {[%clk 0:00:06]} 47. Kd2 {[%clk 0:00:36]}  Ke8 {[%clk 0:00:06]} 48. Bd3 {[%clk 0:00:36]}  Kf7 {[%clk 0:00:06]} 49. Be2 {[%clk 0:00:36]}  Bb5 {[%clk 0:00:00]} 50. Bxb5 {[%clk 0:00:35]} 1-0